bitfinex-derivatives/quotes_SOLF0:USTF0_20251018
["timestamp","ask_amount","ask_price","bid_price","bid_amount"]
[1760810339541,1.67,185.77,185.73,2.67]
[1760810339741,1.67,185.77,185.74,2.67]
[1760810339944,1.67,185.77,185.73,2.67]
[1760810340143,1.67,185.77,185.74,2.67]
[1760810340345,1.67,185.77,185.73,2.67]
[1760810340545,1.67,185.77,185.72,4.94191638]
[1760810340745,1.67,185.77,185.73,2.67]
[1760810341047,1.67,185.77,185.74,2.67]
[1760810341244,4.8432,185.78,185.72,4.93710568]
[1760810341447,4.8432,185.78,185.73,4.93710568]
[1760810341643,6.5132,185.78,185.75,2.67]
[1760810341844,6.5132,185.78,185.74,4.93710568]
[1760810342346,6.5132,185.78,185.76,2.67]
[1760810342846,1.67,185.79,185.75,2.67]
[1760810343040,1.67,185.79,185.76,2.67]
[1760810343946,6.5127,185.8,185.77,2.67]
[1760810344348,1.67,185.79,185.77,2.67]
[1760810346843,1.67,185.79,185.75,4.93710568]
[1760810346844,4.8427,185.8,185.75,4.93710568]
[1760810347046,4.8427,185.8,185.77,2.84]
[1760810347047,6.5027,185.8,185.77,2.84]
[1760810348449,44.54,185.87,185.76,7.77710568]
[1760810348450,6.5022,185.82,185.76,7.77710568]
[1760810348755,4.8422,185.82,185.78,2.84]
[1760810349044,6.5022,185.82,185.78,2.84]
[1760810349244,6.5022,185.82,185.77,4.93710568]
[1760810349442,6.5022,185.82,185.78,2.84]
[1760810349641,6.5022,185.82,185.79,2.84]
[1760810349938,6.5022,185.82,185.77,4.93710568]
[1760810349939,4.8416,185.85,185.77,4.93710568]
[1760810350244,4.8416,185.85,185.78,2.84]
[1760810350245,1.66,185.85,185.78,2.84]
[1760810350446,1.66,185.85,185.79,8.27488998]
[1760810350639,1.66,185.85,185.81,2.84]
[1760810350843,1.66,185.85,185.82,2.84]
[1760810351244,1.66,185.85,185.81,2.84]
[1760810351445,1.66,185.85,185.82,2.84]
[1760810351637,1.66,185.85,185.81,2.84]
[1760810351838,1.66,185.85,185.82,2.84]
[1760810355445,1.66,185.85,185.8,4.93710568]
[1760810356048,1.66,185.85,185.81,2.84]
[1760810356245,1.66,185.85,185.82,2.84]
[1760810356448,1.66,185.85,185.8,4.93710568]
[1760810356643,4.841,185.87,185.81,2.68]
[1760810359849,6.501,185.87,185.81,2.68]
[1760810360049,6.501,185.87,185.81,7.61710568]
[1760810360655,3.3377843,185.88,185.8,7.61710568]
[1760810360856,3.3377843,185.88,185.8,2.68]
[1760810361046,1.66,185.87,185.8,2.68]
[1760810361252,47.8577843,185.88,185.8,2.68]
[1760810361452,1.66,185.87,185.8,2.68]
[1760810361952,4.8416,185.85,185.8,2.68]
[1760810362256,1.66,185.84,185.8,2.68]
[1760810362954,4.8416,185.85,185.8,2.68]
[1760810363649,1.66,185.84,185.8,2.68]
[1760810363845,4.8418,185.84,185.78,4.93710568]
[1760810364057,6.5018,185.84,185.78,7.61710568]
[1760810364750,96.43913719,185.98,185.84,2.68]
[1760810364751,1.66,185.97,185.84,2.68]
[1760810364956,1.66,185.97,185.87,2.68]
[1760810365150,44.54,185.98,185.87,2.68]
[1760810365349,3.3377843,186.03,185.87,2.68]
[1760810365549,1.66,186.01,185.87,2.68]
[1760810365757,3.3377843,186.03,185.87,2.68]
[1760810365945,1.66,186.02,185.87,2.68]
[1760810366146,44.54,186.01,185.87,2.68]
[1760810366349,1.66,185.98,185.9,2.68]
[1760810366555,1.66,185.99,185.9,2.68]
[1760810366747,44.54,185.99,185.9,2.68]
[1760810366954,1.66,185.98,185.9,2.68]
[1760810367961,4.8384,185.97,185.9,2.68]
[1760810368156,1.66,185.98,185.9,2.68]
[1760810368361,15.9855387,186.02,185.93,2.68]
[1760810368362,6.4972,186.02,185.93,2.68]
[1760810369259,1.66,186.02,185.93,2.68]
[1760810371265,4.8373,186.01,185.93,2.68]
[1760810372153,44.52,186.04,185.93,2.68]
[1760810372359,139.38,186.22,185.89,9.76354951]
[1760810372360,1.66,186.08,185.97,2.68]
[1760810372561,44.52,186.08,185.97,2.68]
[1760810372765,1.66,186.05,185.97,2.68]
[1760810373159,44.52,186.08,185.97,2.68]
[1760810373360,1.66,186.03,185.97,2.68]
[1760810374363,4.8364,186.04,185.97,2.68]
[1760810375463,1.66,186.07,185.97,2.68]
[1760810376170,1.66,186.11,185.97,2.68]
[1760810376373,1.66,186.13,186.03,2.68]
[1760810376869,6.4949,186.1,186.03,2.68]
[1760810377265,6.4949,186.1,186.03,6.0177843]
[1760810377266,1.66,186.1,186.03,6.0177843]
[1760810377670,4.8343,186.13,186.03,3.3377843]
[1760810377867,6.4943,186.13,186.04,2.68]
[1760810378263,1.66,186.13,186.04,2.68]
[1760810379264,6.4941,186.13,186.04,2.68]
[1760810379873,6.4947,186.11,186.04,2.68]
[1760810381070,4.8347,186.11,186.04,2.68]
[1760810381569,1.66,186.13,186.04,2.68]
[1760810382174,6.4941,186.13,186.04,2.68]
[1760810383078,4.8347,186.11,186.04,2.68]
[1760810383373,1.66,186.11,186.0,2.68]
[1760810383568,4.8359,186.06,186.0,2.68]
[1760810383771,1.66,186.07,185.96,55.37524992]
[1760810383971,3.3377843,186.06,185.97,2.68]
[1760810384172,6.4975,186.0,185.93,2.68]
[1760810385968,34.9,186.1,185.89,3.3377843]
[1760810385969,1.66,185.97,185.89,3.3377843]
[1760810386275,1.66,185.97,185.9,2.68]
[1760810387975,6.4983,185.97,185.9,2.68]
[1760810388171,1.66,185.97,185.9,2.68]
[1760810388675,1.66,185.97,185.87,2.69]
[1760810389869,3.3377843,185.98,185.87,2.69]
[1760810390174,4.8393,185.93,185.87,2.69]
[1760810391169,1.66,185.94,185.87,2.69]
[1760810391769,1.66,185.94,185.82,7.56031333]
[1760810391966,1.66,185.92,185.82,2.69]
[1760810392772,1.66,185.92,185.83,2.69]
[1760810394171,1.66,185.92,185.84,3.3377843]
[1760810394372,4.8388,185.95,185.88,2.69]
[1760810395579,4.8388,185.95,185.85,4.87031333]
[1760810395776,1.66,185.94,185.86,6.0277843]
[1760810395971,1.66,185.94,185.86,2.69]
[1760810397880,6.4992,185.94,185.86,2.69]
[1760810400384,1.66,185.99,185.89,2.69]
[1760810400779,1.66,185.99,185.92,2.69]
[1760810400979,4.838,185.98,185.92,2.69]
[1760810401786,1.66,185.99,185.92,2.69]
[1760810401984,1.66,186.11,185.92,2.69]
[1760810402185,3.3377843,186.06,185.94,3.3377843]
[1760810402500,3.3377843,186.03,185.92,2.69]
[1760810402688,1.66,185.99,185.88,10.89809763]
[1760810402889,1.66,185.99,185.88,6.0277843]
[1760810403381,1.66,185.98,185.89,2.69]
[1760810404278,1.66,185.98,185.89,7.56031333]
[1760810404484,1.66,185.98,185.89,12.40041333]
[1760810404785,6.4972,186.01,185.92,2.69]
[1760810404982,1.66,186.01,185.94,3.3377843]
[1760810405282,1.66,186.01,185.95,2.69]
[1760810405489,1.66,186.06,185.98,2.69]
[1760810406981,1.66,186.06,186.0,3.3377843]
[1760810407187,1.66,186.06,186.0,6.0277843]
[1760810407381,4.8352,186.09,186.0,6.0277843]
[1760810407587,6.4952,186.09,186.01,2.69]
[1760810408089,1.66,186.07,185.97,2.59]
[1760810408487,3.3377843,186.05,185.97,2.59]
[1760810408689,4.9977843,186.05,185.97,2.59]
[1760810408889,1.66,186.05,185.97,2.59]
[1760810409890,6.4964,186.05,185.97,2.59]
[1760810410190,4.8366,186.04,185.97,2.59]
[1760810410387,1.66,186.03,185.95,4.87031333]
[1760810413091,6.4968,186.03,185.95,4.87031333]
[1760810413480,3.3377843,186.02,185.94,2.59]
[1760810413681,3.3377843,186.02,185.89,4.87031333]
[1760810413682,3.3377843,185.96,185.89,4.87031333]
[1760810413989,3.3377843,185.96,185.88,2.59]
[1760810415085,4.839,185.95,185.88,2.59]
[1760810416480,4.839,185.95,185.88,7.46031333]
[1760810418896,4.839,185.95,185.88,2.59]
[1760810420694,6.4983,185.97,185.89,2.62]
[1760810421096,1.66,185.97,185.89,2.62]
[1760810422093,4.8387,185.96,185.89,2.62]
[1760810423585,1.66,185.95,185.88,4.87031333]
[1760810423791,1.66,185.95,185.86,7.49031333]
[1760810424288,4.8395,185.93,185.86,7.49031333]
[1760810425592,1.66,185.92,185.86,2.62]
[1760810425793,1.66,185.95,185.84,4.87031333]
[1760810426393,3.3377843,185.96,185.84,4.87031333]
[1760810426893,3.3377843,185.96,185.83,4.87031333]
[1760810426894,4.8402,185.9,185.83,4.87031333]
[1760810427092,1.66,185.89,185.83,4.87031333]
[1760810427297,6.5005,185.89,185.83,4.87031333]
[1760810427589,1.66,185.89,185.85,2.62]
[1760810427795,1.66,185.89,185.86,2.62]
[1760810428390,4.8402,185.9,185.86,2.62]
[1760810428594,6.5002,185.9,185.86,2.62]
[1760810429296,3.3377843,185.95,185.84,4.87031333]
[1760810429297,1.66,185.89,185.84,4.87031333]
[1760810429498,1.66,185.89,185.81,7.49031333]
[1760810429701,1.66,185.89,185.82,4.87031333]
[1760810430001,1.66,185.89,185.81,7.49031333]
[1760810430501,1.66,185.92,185.83,2.62]
[1760810430700,1.66,185.92,185.83,4.87031333]
[1760810430895,4.8385,185.96,185.87,7.49031333]
[1760810431296,4.8385,185.96,185.88,2.62]
[1760810431802,4.8389,185.95,185.88,7.49031333]
[1760810432001,4.8389,185.95,185.88,2.62]
[1760810432799,3.3377843,185.96,185.86,4.87031333]
[1760810433109,1.66,185.92,185.85,2.62]
[1760810433296,6.5008,185.88,185.82,7.55401486]
[1760810434100,6.5008,185.88,185.82,2.62]
[1760810436404,6.5008,185.88,185.82,7.55401486]
[1760810437397,6.5008,185.88,185.82,2.62]
[1760810437801,3.3377843,185.92,185.81,4.93401486]
[1760810438004,3.3377843,185.92,185.8,4.93401486]
[1760810438395,1.66,185.91,185.8,4.93401486]
[1760810438801,4.8413,185.86,185.79,7.55401486]
[1760810439003,1.66,185.85,185.79,7.55401486]
[1760810439405,1.66,185.85,185.79,2.62]
[1760810439807,1.66,185.85,185.79,7.55401486]
[1760810440210,4.8413,185.86,185.79,7.55401486]
[1760810440404,4.8413,185.86,185.81,2.62]
[1760810440606,1.66,185.89,185.83,5.9577843]
[1760810441403,4.8401,185.9,185.83,5.9577843]
[1760810441712,4.8401,185.9,185.86,2.62]
[1760810442704,6.5001,185.9,185.86,2.62]
[1760810442904,4.8401,185.9,185.85,3.3377843]
[1760810443108,6.5005,185.89,185.82,8.27179916]
[1760810443612,6.5005,185.89,185.82,3.3377843]
[1760810444202,6.5005,185.89,185.81,7.55401486]
[1760810444410,6.5005,185.89,185.81,10.89179916]
[1760810452313,6.5005,185.89,185.82,4.93401486]
[1760810454118,6.5005,185.89,185.83,2.63]
[1760810454311,6.5005,185.89,185.84,3.3377843]
[1760810454511,6.5005,185.89,185.85,2.63]
[1760810455716,1.66,185.88,185.85,2.63]
[1760810455907,6.5005,185.89,185.83,4.93401486]
[1760810456815,3.3377843,185.95,185.84,4.93401486]
[1760810456816,1.66,185.94,185.84,4.93401486]
[1760810457021,1.66,185.94,185.83,4.93401486]
[1760810457420,1.66,185.94,185.84,7.56401486]
[1760810457614,1.66,185.93,185.84,7.56401486]
[1760810457816,4.8402,185.9,185.85,4.93401486]
[1760810458113,6.5002,185.9,185.86,2.63]
[1760810458925,1.66,185.89,185.86,2.63]
[1760810460226,5.00742479,186.0,185.86,2.63]
[1760810460227,3.3377843,185.98,185.87,2.63]
[1760810460521,1.66,185.97,185.9,4.93401486]
[1760810460820,1.66,185.96,185.89,4.93401486]
[1760810461021,3.3377843,185.97,185.9,2.63]
[1760810461220,9.6747,186.01,185.9,2.63]
[1760810461221,1.66,185.96,185.9,2.63]
[1760810461521,1.66,185.99,185.89,4.93401486]
[1760810461726,4.8392,185.94,185.89,4.93401486]
[1760810461915,1.66,185.93,185.89,4.93401486]
[1760810462119,4.8392,185.94,185.89,4.93401486]
[1760810462522,4.8392,185.94,185.9,2.63]
[1760810462718,4.8392,185.94,185.89,4.93401486]
[1760810462917,6.4992,185.94,185.9,2.63]
[1760810463827,6.4992,185.94,185.89,4.93401486]
[1760810464127,6.4992,185.94,185.91,2.63]
[1760810465128,1.66,185.94,185.91,7.56401486]
[1760810465331,1.66,185.94,185.91,2.63]
[1760810465530,1.66,185.99,185.91,7.56401486]
[1760810465731,1.66,185.98,185.91,7.56401486]
[1760810466929,4.8386,185.96,185.91,7.56401486]
[1760810467139,1.66,185.98,185.92,2.59]
[1760810467830,4.8395,185.92,185.91,4.93401486]
[1760810468035,3.3377843,185.98,185.88,7.52401486]
[1760810468230,1.66,185.97,185.89,4.93401486]
[1760810468734,6.4992,185.94,185.9,2.59]
[1760810469333,1.66,185.94,185.89,4.93401486]
[1760810469535,1.66,185.95,185.91,2.59]
[1760810469830,1.66,185.97,185.91,2.59]
[1760810470430,4.8392,185.94,185.91,2.59]
[1760810470627,6.4992,185.94,185.91,2.59]
[1760810470837,1.66,185.97,185.91,7.52401486]
[1760810471330,1.66,185.96,185.91,2.59]
[1760810471529,3.3377843,185.97,185.91,2.59]
[1760810471731,44.8,186.0,185.91,2.59]
[1760810471932,1.66,185.97,185.91,2.59]
[1760810472325,4.8389,185.95,185.91,2.59]
[1760810472531,1.66,185.97,185.89,4.93401486]
[1760810473034,6.4992,185.94,185.9,2.59]
[1760810473226,3.3377843,185.98,185.91,2.59]
[1760810473424,3.3377843,185.98,185.91,7.52401486]
[1760810473425,1.66,185.97,185.91,7.52401486]
[1760810473625,4.8389,185.95,185.91,7.52401486]
[1760810473930,1.66,185.94,185.88,4.93401486]
[1760810474131,1.66,185.94,185.87,4.93401486]
[1760810474327,3.3377843,185.93,185.87,7.52401486]
[1760810474834,4.8395,185.93,185.88,4.93401486]
[1760810475031,4.9977843,185.96,185.83,13.20753946]
[1760810475032,4.9977843,185.96,185.89,7.52401486]
[1760810475235,4.9977843,185.96,185.9,4.93401486]
[1760810475935,4.8388,185.95,185.9,4.93401486]
[1760810476631,4.8388,185.95,185.91,2.66]
[1760810476828,4.8388,185.95,185.92,2.66]
[1760810478433,6.4988,185.95,185.91,7.59401486]
[1760810479738,4.8388,185.95,185.92,2.66]
[1760810480132,4.8388,185.95,185.91,4.93401486]
[1760810480531,4.8388,185.95,185.91,7.59401486]
[1760810480734,4.8388,185.95,185.91,4.93401486]
[1760810481139,4.8388,185.95,185.92,2.66]
[1760810482934,6.4988,185.95,185.92,2.66]
[1760810483336,1.66,185.94,185.91,4.93401486]
[1760810483542,1.66,185.94,185.87,4.8407]
[1760810483543,1.66,185.93,185.89,4.93401486]
[1760810484037,4.8392,185.94,185.9,2.66]
[1760810484237,6.4992,185.94,185.9,2.66]
[1760810485239,6.4992,185.94,185.9,7.59401486]
[1760810485437,6.4992,185.94,185.9,2.66]
[1760810485836,6.4992,185.94,185.9,7.59401486]
[1760810486039,4.8386,185.96,185.91,2.66]
[1760810486238,4.8386,185.96,185.91,4.93401486]
[1760810486442,4.8386,185.96,185.93,2.66]
[1760810488436,4.8386,185.96,185.92,4.93401486]
[1760810488639,4.8386,185.96,185.93,4.93401486]
[1760810488841,4.8386,185.96,185.94,2.66]
[1760810489545,1.66,186.02,185.95,4.93401486]
[1760810489745,1.66,186.02,185.96,4.93401486]
[1760810490136,4.8373,186.01,185.96,4.93401486]
[1760810490341,4.8373,186.01,185.97,2.66]
[1760810490742,4.8373,186.01,185.96,4.93401486]
[1760810490942,4.8373,186.01,185.97,2.66]
[1760810491148,4.8368,186.03,185.97,2.66]
[1760810491349,4.8368,186.03,185.97,7.59401486]
[1760810491543,4.8368,186.03,185.99,2.66]
[1760810492044,6.4968,186.03,185.99,2.66]
[1760810493148,6.4968,186.03,185.95,6.60517828]
[1760810493149,1.66,186.02,185.98,4.93401486]
[1760810493345,1.66,186.02,185.97,4.93401486]
[1760810493543,4.8374,186.01,185.97,7.59401486]
[1760810493747,3.3377843,186.04,185.93,4.93401486]
[1760810493949,1.66,186.03,185.93,4.93401486]
[1760810494166,3.3377843,186.04,185.93,4.93401486]
[1760810494167,1.66,186.0,185.93,4.93401486]
[1760810494549,1.66,186.0,185.92,4.93401486]
[1760810494745,4.8382,185.98,185.92,4.93401486]
[1760810494942,1.66,185.98,185.91,7.59401486]
[1760810495146,4.9977843,185.98,185.91,7.59401486]
[1760810495946,4.8387,185.96,185.91,4.93401486]
[1760810496148,6.4987,185.96,185.92,2.66]
[1760810496354,1.66,185.97,185.91,4.93401486]
[1760810496555,1.66,185.97,185.9,4.93401486]
[1760810497049,4.839,185.95,185.92,2.66]
[1760810497451,4.8383,185.97,185.92,7.59401486]
[1760810497745,4.8383,185.97,185.93,2.66]
[1760810498061,4.8383,185.97,185.92,4.93401486]
[1760810498255,4.8378,185.99,185.93,2.66]
[1760810498455,46.44,186.0,185.93,7.59401486]
[1760810499654,46.44,186.0,185.93,2.66]
[1760810499961,51.2775,186.0,185.94,4.93401486]
[1760810501956,44.78,186.0,185.96,2.66]
[1760810502150,44.78,186.0,185.95,4.93401486]
[1760810502352,44.78,186.0,185.96,4.93401486]
[1760810502559,44.78,186.0,185.97,2.66]
[1760810502761,44.78,186.0,185.97,7.59401486]
[1760810503159,6.4964,186.04,185.97,7.59401486]
[1760810504268,1.66,186.01,185.97,7.59401486]
[1760810504462,6.497,186.02,185.96,4.93401486]
[1760810504663,6.497,186.02,185.95,4.93401486]
[1760810505569,6.497,186.02,185.96,4.93401486]
[1760810506068,4.8375,186.01,185.96,4.93401486]
[1760810506259,1.66,186.01,185.94,7.59401486]
[1760810506460,9.6707,186.09,185.93,4.93401486]
[1760810506461,4.9977843,185.99,185.93,4.93401486]
[1760810506677,4.8385,185.97,185.91,4.93401486]
[1760810506967,1.66,185.97,185.91,4.93401486]
[1760810507267,1.66,185.95,185.91,4.93401486]
[1760810507968,1.66,185.95,185.91,7.52401486]
[1760810508168,6.499,185.95,185.91,7.52401486]
[1760810508365,6.499,185.95,185.89,4.93401486]
[1760810508366,1.66,185.95,185.89,4.93401486]
[1760810510070,1.66,185.95,185.9,2.59]
[1760810510071,4.8395,185.93,185.9,2.59]
[1760810510366,4.8395,185.93,185.89,4.93401486]
[1760810510367,6.4995,185.93,185.89,4.93401486]
[1760810510868,6.4995,185.93,185.89,7.52401486]
[1760810511064,4.8388,185.95,185.9,2.59]
[1760810511269,48.1177843,185.99,185.91,7.52401486]
[1760810511468,48.1177843,185.99,185.93,4.93401486]
[1760810511676,48.1177843,185.99,185.91,2.59]
[1760810511677,48.1177843,185.99,185.92,4.93401486]
[1760810512065,1.66,185.98,185.92,4.93401486]
[1760810512373,6.4986,185.96,185.92,2.59]
[1760810512675,6.4986,185.96,185.92,7.52401486]
[1760810513467,6.4986,185.96,185.93,2.59]
[1760810513976,6.4981,185.98,185.92,4.93401486]
[1760810514173,4.8381,185.98,185.94,2.59]
[1760810514383,4.8381,185.98,185.94,7.52401486]
[1760810514384,6.4981,185.98,185.94,7.52401486]
[1760810514881,1.66,185.97,185.94,4.93401486]
[1760810515077,1.66,185.97,185.93,7.52401486]
[1760810515274,1.66,185.97,185.94,2.59]
[1760810516380,1.66,185.97,185.93,4.93401486]
[1760810516681,1.66,185.97,185.93,7.52401486]
[1760810517384,6.4981,185.98,185.94,2.59]
[1760810518478,1.66,185.97,185.94,2.59]
[1760810519882,6.4981,185.98,185.94,2.59]
[1760810520379,44.76,186.0,185.96,7.52401486]
[1760810520380,49.5975,186.0,185.96,7.52401486]
[1760810520585,49.5975,186.0,185.97,2.59]
[1760810520785,49.5975,186.0,185.97,7.52401486]
[1760810520986,49.5975,186.0,185.98,2.59]
[1760810521187,44.76,186.0,185.98,2.59]
[1760810521885,88.20465672,186.06,185.98,5.9277843]
[1760810521886,86.52687242,186.06,185.98,5.9277843]
[1760810522083,86.52687242,186.06,186.0,4.93401486]
[1760810522281,86.52687242,186.06,186.0,7.52401486]
[1760810522489,91.36287242,186.06,186.0,7.52401486]
[1760810522690,84.86687242,186.06,186.01,4.93401486]
[1760810522886,44.74,186.07,186.02,2.59]
[1760810523090,44.74,186.07,186.03,2.59]
[1760810523486,140.27532044,186.17,186.03,7.52401486]
[1760810523694,1.66,186.15,186.05,2.59]
[1760810524388,4.8339,186.14,186.05,7.52401486]
[1760810524590,4.8339,186.14,186.04,3.3377843]
[1760810524591,1.66,186.15,186.06,7.52401486]
[1760810524788,44.76,186.2,186.09,2.59]
[1760810524987,4.8328,186.18,186.09,7.52401486]
[1760810525182,1.66,186.17,186.07,4.93401486]
[1760810525485,3.3377843,186.18,186.06,5.9277843]
[1760810525687,4.8341,186.14,186.06,10.86179916]
[1760810526483,44.8,186.15,186.08,7.69401486]
[1760810526686,44.8,186.15,186.09,8.27179916]
[1760810526889,44.8,186.15,186.1,2.76]
[1760810527189,44.8,186.15,186.09,8.27179916]
[1760810527190,44.8,186.15,186.09,3.3377843]
[1760810527588,4.8332,186.17,186.1,2.76]
[1760810528282,51.2724,186.2,186.1,2.76]
[1760810528487,46.44,186.2,186.1,2.76]
[1760810529090,1.66,186.19,186.1,2.76]
[1760810530093,4.833,186.18,186.1,2.76]
[1760810531889,4.8333,186.17,186.1,2.76]
[1760810538388,6.4926,186.19,186.12,2.81]
[1760810538588,1.66,186.19,186.12,2.81]
[1760810539297,4.833,186.18,186.12,2.81]
[1760810540098,4.8332,186.17,186.12,2.81]
[1760810540299,1.66,186.15,186.06,2.81]
[1760810540605,1.66,186.09,186.02,2.81]
[1760810541301,4.8344,186.12,186.02,6.1477843]
[1760810541500,4.8344,186.12,186.03,2.81]
[1760810543199,1.66,186.12,186.03,2.81]
[1760810543393,3.3377843,186.13,186.03,2.81]
[1760810543692,1.66,186.06,185.99,2.81]
[1760810544297,4.8364,186.05,185.99,2.81]
[1760810544502,3.3377843,186.04,185.95,2.81]
[1760810544701,4.9977843,186.04,185.95,2.81]
[1760810545206,4.8369,186.03,185.95,2.81]
[1760810545594,1.66,186.04,185.95,2.81]
[1760810546700,4.8367,186.03,185.95,2.81]
[1760810547901,6.4972,186.01,185.95,2.81]
[1760810548400,6.4972,186.01,185.91,2.81]
[1760810548401,1.66,186.0,185.91,2.81]
[1760810549502,4.838,185.99,185.91,2.81]
[1760810550401,6.4983,185.97,185.91,2.81]
[1760810550699,6.4983,185.97,185.87,2.81]
[1760810550700,1.66,185.97,185.87,2.81]
[1760810551003,1.66,185.94,185.87,2.81]
[1760810551702,6.4991,185.94,185.87,2.81]
[1760810552102,1.66,185.94,185.87,2.81]
[1760810552296,3.3377843,185.95,185.87,2.81]
[1760810552601,6.4984,185.97,185.87,2.81]
[1760810552807,6.4977,186.0,185.89,2.81]
[1760810553303,6.4977,186.0,185.91,6.1477843]
[1760810554398,4.8379,185.99,185.91,6.1477843]
[1760810554598,1.66,185.98,185.91,6.1477843]
[1760810555701,4.8372,186.01,185.91,6.1477843]
[1760810557298,1.66,186.0,185.91,6.1477843]
[1760810557497,6.4977,186.0,185.91,6.1477843]
[1760810561908,4.8379,185.99,185.91,6.1477843]
[1760810562205,1.66,186.0,185.91,6.1477843]
[1760810562606,1.66,185.97,185.88,3.3377843]
[1760810563405,1.66,185.97,185.87,2.81]
[1760810564008,4.8387,185.96,185.87,2.81]
[1760810565713,4.839,185.95,185.87,2.81]
[1760810566206,1.66,185.97,185.87,2.81]
[1760810566600,3.3377843,185.95,185.87,2.81]
[1760810567011,4.8393,185.94,185.87,2.81]
[1760810567310,1.66,185.97,185.88,2.65]
[1760810567903,4.8386,185.96,185.88,2.65]
[1760810568806,4.8386,185.96,185.88,7.4904]
[1760810570907,8.1767843,185.95,185.88,2.65]
[1760810572610,6.4992,185.94,185.88,2.65]
[1760810573207,4.8386,185.96,185.88,2.65]
[1760810575213,4.8386,185.96,185.88,7.4903]
[1760810580308,4.8386,185.96,185.9,2.65]
[1760810581215,4.9977843,186.0,185.9,2.65]
[1760810582210,1.66,185.98,185.9,2.65]
[1760810583816,1.66,185.98,185.9,7.57343967]
[1760810585014,1.66,185.98,185.92,4.8394]
[1760810585516,1.66,185.98,185.92,9.76283967]
[1760810586917,3.3377843,186.0,185.93,7.78343967]
[1760810587310,3.3377843,186.0,185.94,4.92343967]
[1760810587512,8.1753843,186.0,185.94,4.92343967]
[1760810588312,8.1753843,186.0,185.95,4.92343967]
[1760810588513,1.65,185.99,185.95,7.78343967]
[1760810590317,1.65,185.99,185.96,2.86]
[1760810590516,3.3377843,186.0,185.97,7.78343967]
[1760810591114,1.65,186.01,185.97,4.92343967]
[1760810591316,4.837,186.02,185.98,2.86]
[1760810591711,6.487,186.02,185.98,7.78343967]
[1760810591910,1.65,186.01,185.98,7.78343967]
[1760810592311,1.65,186.01,185.98,4.92343967]
[1760810593220,1.65,186.01,185.95,9.42458623]
[1760810593221,8.1752843,186.0,185.97,4.92343967]
[1760810593617,1.65,185.99,185.96,4.92343967]
[1760810594518,1.65,185.99,185.96,7.78343967]
[1760810594719,8.1752843,186.0,185.97,7.78343967]
[1760810595021,9.8252843,186.0,185.97,7.78343967]
[1760810596620,8.1752843,186.0,185.98,4.92343967]
[1760810597226,8.1752843,186.0,185.99,4.92343967]
[1760810597618,6.4971,186.02,185.99,4.92343967]
[1760810598422,3.3377843,186.03,186.0,4.92343967]
[1760810598720,93.38010667,186.04,186.01,7.62343967]
[1760810599126,95.04010667,186.04,186.01,7.62343967]
[1760810599420,95.04010667,186.04,186.01,2.7]
[1760810600420,4.8368,186.03,186.0,4.92343967]
[1760810600629,1.66,186.02,186.0,4.92343967]
[1760810600924,1.66,186.02,185.99,4.92343967]
[1760810601931,3.3377843,186.03,185.99,4.92343967]